fUSD/lending_fUSD_20251028
["ID","MTS","AMOUNT","RATE_DAILY","PERIOD"]
[392557306,1761660646550,-651.02,0.00030136,3]
[392557307,1761660646560,-500.0,0.00030136,3]
[392557308,1761660646569,-545.01,0.00030136,3]
[392557309,1761660646579,-500.0,0.00030136,3]
[392557310,1761660646589,-1848.54,0.00030136,3]
[392557311,1761660646598,-500.0,0.00030136,2]
[392557312,1761660646608,-500.0,0.00030136,3]
[392557313,1761660646617,-500.0,0.00030136,3]
[392557315,1761660646630,-500.0,0.00030136,3]
[392557318,1761660646640,-500.0,0.00030136,3]
[392557319,1761660646650,-1849.52,0.00030136,3]
[392557321,1761660646659,-500.0,0.00030136,3]
[392557324,1761660646668,-500.0,0.00030136,3]
[392557326,1761660646679,-500.0,0.00030136,3]
[392557327,1761660646688,-500.0,0.00030136,3]
[392557329,1761660646697,-500.0,0.00030136,3]
[392557331,1761660646706,-500.0,0.00030136,3]
[392557333,1761660646716,-500.0,0.00030136,3]
[392557335,1761660646725,-500.0,0.00030136,3]
[392557337,1761660646734,-500.0,0.00030136,3]
[392557339,1761660646744,-3172.04,0.00030136,3]
[392557341,1761660646753,-500.0,0.00030136,3]
[392557343,1761660646762,-500.0,0.00030136,2]
[392557345,1761660646772,-500.0,0.00030136,3]
[392557347,1761660646781,-500.0,0.00030136,3]
[392557349,1761660646791,-500.0,0.00030136,2]
[392557351,1761660646800,-500.0,0.00030136,3]
[392557353,1761660646809,-500.0,0.00030136,2]
[392557355,1761660646818,-500.0,0.00030136,3]
[392557358,1761660646828,-500.0,0.00030136,2]
[392557360,1761660646837,-500.0,0.00030136,3]
[392557362,1761660646846,-500.0,0.00030136,3]
[392557364,1761660646856,-500.0,0.00030136,3]
[392557366,1761660646865,-500.0,0.00030136,2]
[392557368,1761660646874,-500.0,0.00030136,3]
[392557370,1761660646883,-500.0,0.00030136,3]
[392557372,1761660646895,-158.76885159,0.00030136,2]
[392557374,1761660646904,-500.0,0.00030136,3]
[392557376,1761660646914,-314.5,0.00030137,120]
[392557378,1761660646927,-506.07,0.00030137,14]
[392557380,1761660646936,-166.66,0.00030159,2]
[392557382,1761660646946,-199.88,0.00030162,2]
[392557384,1761660646955,-501.60002589,0.00030173,5]
[392557386,1761660646967,-3241.87204821,0.00030188,2]
[392557388,1761660646976,-168.0,0.00030231,2]
[392557390,1761660646985,-500.0,0.00030236,120]
[392557392,1761660646994,-168.0,0.0003025,2]
[392557394,1761660647004,-750.0,0.00030266,2]
[392557396,1761660647015,-750.0,0.00030266,2]
[392557398,1761660647024,-150.0,0.00030273,2]
[392557400,1761660647033,-500.0,0.00030273,2]
[392557402,1761660647042,-500.0,0.00030273,10]
[392557404,1761660647052,-13.62427132,0.00030273,10]
[392557407,1761660647068,-486.37572868,0.00030273,10]
[392557409,1761660647077,-500.0,0.00030273,10]
[392557411,1761660647087,-500.0,0.00030273,10]
[392557413,1761660647096,-168.0,0.00030278,2]
[392557415,1761660647106,-77.52427132,0.00030285,2]
[392557417,1761660647120,-354.90965316,0.00030285,2]
[392557419,1761660647133,-131.56607552,0.00030285,2]
[392557421,1761660647142,-168.0,0.000303,2]
[392557423,1761660647151,-497.22302418,0.000303,3]
[392557431,1761660647225,-8373.3498385,0.000303,3]
[392557433,1761660647235,-5000.0,0.0003031,2]
[392557435,1761660647244,-184.21,0.00030316,2]
[392557437,1761660647253,-246.0,0.00030329,7]
[392557439,1761660647263,-168.0,0.00030333,2]
[392557441,1761660647272,-300.0,0.00030335,2]
[392557443,1761660647281,-3241.87204821,0.00030341,2]
[392557444,1761660647291,-220.0,0.0003035,2]
[392557445,1761660647300,-220.0,0.00030353,2]
[392557447,1761660647309,-199.88,0.00030364,2]
[392557449,1761660647318,-160.47242445,0.00030373,5]
[392557451,1761660647328,-331.0,0.00030381,7]
[392557453,1761660647337,-8870.57286268,0.0003039,3]
[392557454,1761660647347,-53223.4371761,0.0003039,3]
[392557455,1761660647356,-8870.57286268,0.00030399,3]
[392557456,1761660647365,-6264.7745738,0.00030399,3]
[392557457,1761660647375,-62094.0100388,0.000304,3]
[392557458,1761660647384,-62647.745738,0.000304,3]
[392557459,1761660647394,-529.0,0.00030403,2]
[392557460,1761660647403,-500.0,0.00030408,3]
[392557461,1761660647412,-500.0,0.00030408,3]
[392557462,1761660647421,-460.83955741,0.00030408,3]
[392557463,1761660647431,-1002.19,0.00030408,3]
[392557464,1761660647440,-287.86737313,0.00030408,3]
[392557465,1761660647449,-500.0,0.00030408,3]
[392557466,1761660647458,-500.0,0.00030408,3]
[392557467,1761660647467,-500.0,0.00030409,3]
[392557468,1761660647477,-500.0,0.00030409,3]
[392557469,1761660647487,-500.0,0.00030409,3]
[392557470,1761660647497,-500.0,0.00030409,3]
[392557471,1761660647506,-500.0,0.00030409,3]
[392557472,1761660647517,-500.0,0.00030409,3]
[392557473,1761660647528,-500.0,0.00030409,3]
[392557474,1761660647538,-500.0,0.00030409,3]
[392557475,1761660647547,-697.88,0.00030409,3]
[392557476,1761660647556,-5983.35,0.00030409,3]
[392557477,1761660647566,-274.544644,0.0003041,2]
[392557478,1761660647576,-427.79060698,0.0003041,2]
[392557479,1761660647585,-500.0,0.0003041,10]
[392557480,1761660647594,-500.0,0.0003041,10]
[392557481,1761660647603,-500.0,0.0003041,10]
[392557482,1761660647612,-500.0,0.0003041,10]
[392557483,1761660647622,-500.0,0.0003041,3]
[392557484,1761660647631,-500.0,0.0003041,3]
[392557485,1761660647643,-500.0,0.0003041,2]
[392557486,1761660647652,-500.0,0.0003041,3]
[392557487,1761660647661,-500.0,0.0003041,2]
[392557488,1761660647671,-546.40636216,0.0003041,3]
[392557489,1761660647680,-272.46903745,0.0003041,3]
[392557490,1761660647689,-536.08245219,0.0003041,3]
[392557491,1761660647699,-500.0,0.0003041,3]
[392557492,1761660647708,-500.0,0.0003041,3]
[392557493,1761660647717,-500.0,0.0003041,3]
[392557494,1761660647727,-1013.95,0.0003041,3]
[392557495,1761660647738,-500.0,0.0003041,3]
[392557496,1761660647747,-500.0,0.0003041,3]
[392557497,1761660647757,-500.0,0.0003041,3]
[392557498,1761660647766,-500.0,0.0003041,3]
[392557499,1761660647775,-500.0,0.0003041,3]
[392557500,1761660647784,-966.56,0.0003041,3]
[392557501,1761660647794,-500.0,0.0003041,3]
[392557502,1761660647803,-500.0,0.0003041,3]
[392557503,1761660647812,-500.0,0.0003041,2]
[392557504,1761660647821,-500.0,0.0003041,3]
[392557505,1761660647832,-500.0,0.0003041,3]
[392557506,1761660647841,-500.0,0.0003041,3]
[392557507,1761660647851,-500.0,0.0003041,2]
[392557508,1761660647860,-500.0,0.0003041,3]
[392557509,1761660647870,-500.0,0.0003041,3]
[392557510,1761660647879,-500.0,0.0003041,3]
[392557511,1761660647888,-894.25,0.0003041,3]
[392557512,1761660647901,-579.23,0.0003041,2]
[392557513,1761660647910,-300.0,0.0003041,3]
[392557514,1761660647920,-258.3190822,0.0003041,3]
[392557515,1761660647933,-500.0,0.0003041,3]
[392557516,1761660647942,-500.0,0.0003041,3]
[392557517,1761660647952,-767.52,0.0003041,3]
[392557518,1761660647962,-500.0,0.0003041,3]
[392557519,1761660647971,-500.0,0.0003041,3]
[392557520,1761660647980,-500.0,0.0003041,3]
[392557521,1761660647989,-500.0,0.0003041,3]
[392557522,1761660647999,-500.0,0.0003041,3]
[392557523,1761660648008,-524.36,0.0003041,3]
[392557524,1761660648017,-500.0,0.0003041,3]
[392557525,1761660648027,-778.87,0.0003041,3]
[392557526,1761660648036,-539.02207219,0.0003041,3]
[392557527,1761660648045,-500.0,0.0003041,3]
[392557528,1761660648054,-500.0,0.0003041,3]
[392557529,1761660648063,-500.0,0.0003041,3]
[392557530,1761660648073,-525.4,0.0003041,3]
[392557531,1761660648082,-500.0,0.0003041,3]
[392557532,1761660648093,-500.0,0.0003041,3]
[392557533,1761660648102,-500.0,0.0003041,3]
[392557534,1761660648112,-500.0,0.0003041,3]
[392557535,1761660648123,-500.0,0.0003041,3]
[392557536,1761660648133,-500.0,0.0003041,3]
[392557537,1761660648146,-500.0,0.0003041,3]
[392557538,1761660648155,-500.0,0.0003041,3]
[392557539,1761660648164,-500.0,0.0003041,3]
[392557540,1761660648174,-500.0,0.0003041,3]
[392557541,1761660648183,-500.0,0.0003041,3]
[392557542,1761660648192,-500.0,0.0003041,3]
[392557543,1761660648204,-500.0,0.0003041,3]
[392557544,1761660648213,-500.0,0.0003041,3]
[392557545,1761660648223,-500.0,0.0003041,3]
[392557546,1761660648233,-500.0,0.0003041,3]
[392557547,1761660648242,-500.0,0.0003041,3]
[392557548,1761660648251,-500.0,0.0003041,3]
[392557549,1761660648261,-500.0,0.0003041,3]
[392557550,1761660648270,-500.0,0.0003041,3]
[392557551,1761660648279,-640.83316222,0.0003041,3]
[392557552,1761660648290,-500.0,0.0003041,3]
[392557553,1761660648299,-500.0,0.0003041,3]
[392557554,1761660648308,-500.0,0.0003041,3]
[392557555,1761660648319,-572.06918189,0.0003041,3]
[392557556,1761660648328,-500.0,0.0003041,3]
[392557557,1761660648337,-500.0,0.0003041,3]
[392557558,1761660648347,-3284.69,0.0003041,2]
[392557559,1761660648356,-500.0,0.0003041,3]
[392557560,1761660648365,-619.13,0.0003041,3]
[392557561,1761660648374,-500.0,0.0003041,15]
[392557562,1761660648383,-500.0,0.0003041,3]
[392557563,1761660648395,-500.0,0.0003041,3]
[392557564,1761660648404,-500.0,0.0003041,3]
[392557565,1761660648414,-722.73,0.0003041,3]
[392557566,1761660648423,-500.0,0.0003041,3]
[392557567,1761660648433,-500.0,0.0003041,3]
[392557568,1761660648442,-500.0,0.0003041,3]
[392557569,1761660648452,-500.0,0.0003041,3]
[392557570,1761660648461,-500.0,0.0003041,3]
[392557571,1761660648471,-500.0,0.0003041,3]
[392557572,1761660648480,-621.42,0.0003041,3]
[392557573,1761660648489,-500.0,0.0003041,3]
[392557574,1761660648502,-500.0,0.0003041,3]
[392557575,1761660648513,-500.0,0.0003041,3]
[392557576,1761660648522,-2073.1,0.0003041,3]
[392557577,1761660648534,-500.0,0.0003041,3]
[392557578,1761660648543,-500.0,0.0003041,3]
[392557579,1761660648552,-500.0,0.0003041,3]
[392557580,1761660648561,-500.0,0.0003041,3]
[392557581,1761660648570,-500.0,0.0003041,3]
[392557582,1761660648579,-500.0,0.0003041,3]
[392557583,1761660648588,-500.0,0.0003041,3]
[392557584,1761660648597,-500.0,0.0003041,3]
[392557585,1761660648606,-1450.26,0.0003041,3]
[392557586,1761660648615,-1522.36,0.0003041,3]
[392557587,1761660648624,-500.0,0.0003041,3]
[392557588,1761660648633,-500.0,0.0003041,3]
[392557589,1761660648643,-500.0,0.0003041,3]
[392557590,1761660648652,-457.81489245,0.0003041,3]
[392557591,1761660648662,-500.0,0.0003041,3]
[392557592,1761660648671,-500.0,0.0003041,3]
[392557593,1761660648680,-891.34,0.0003041,3]
[392557594,1761660648690,-500.0,0.0003041,3]
[392557595,1761660648699,-500.0,0.0003041,3]
[392557596,1761660648708,-500.0,0.0003041,3]
[392557597,1761660648718,-3744.82,0.0003041,3]
[392557598,1761660648727,-500.0,0.0003041,3]
[392557599,1761660648736,-2157.94,0.0003041,3]
[392557600,1761660648745,-152.55474778,0.0003041,3]
[392557601,1761660648755,-500.0,0.0003041,3]
[392557602,1761660648765,-500.0,0.0003041,3]
[392557603,1761660648775,-594.16,0.0003041,3]
[392557604,1761660648785,-500.0,0.0003041,3]
[392557605,1761660648794,-2220.93,0.0003041,3]
[392557606,1761660648803,-500.0,0.0003041,3]
[392557607,1761660648813,-1300.73,0.0003041,3]
[392557608,1761660648822,-500.0,0.0003041,3]
[392557609,1761660648831,-1000.0,0.0003041,3]
[392557610,1761660648841,-500.0,0.0003041,3]
[392557611,1761660648851,-2086.78,0.0003041,3]
[392557612,1761660648860,-500.0,0.0003041,3]
[392557613,1761660648869,-500.0,0.0003041,3]
[392557614,1761660648878,-500.0,0.0003041,3]
[392557615,1761660648888,-300.0,0.0003041,2]
[392557616,1761660648900,-500.0,0.0003041,3]
[392557617,1761660648909,-500.0,0.0003041,3]
[392557618,1761660648920,-500.0,0.0003041,3]
[392557619,1761660648934,-500.0,0.0003041,3]
[392557620,1761660648946,-1896.82,0.0003041,3]
[392557621,1761660648955,-500.0,0.0003041,3]
[392557622,1761660648965,-500.0,0.0003041,3]
[392557623,1761660648974,-500.0,0.0003041,3]
[392557624,1761660648984,-500.0,0.0003041,3]
[392557625,1761660648993,-500.0,0.0003041,3]
[392557626,1761660649002,-500.0,0.0003041,3]
[392557627,1761660649014,-500.0,0.0003041,2]
[392557628,1761660649023,-500.0,0.0003041,3]
[392557629,1761660649033,-500.0,0.0003041,3]
[392557630,1761660649042,-500.0,0.0003041,3]
[392557631,1761660649051,-500.0,0.0003041,3]
[392557632,1761660649060,-500.0,0.0003041,3]
[392557633,1761660649069,-500.0,0.0003041,3]
[392557634,1761660649078,-500.0,0.0003041,3]
[392557635,1761660649087,-500.0,0.0003041,3]
[392557636,1761660649096,-500.0,0.0003041,3]
[392557637,1761660649105,-294.98691616,0.0003041,3]
[392557638,1761660649114,-500.0,0.0003041,3]
[392557639,1761660649123,-500.0,0.0003041,3]
[392557640,1761660649132,-500.0,0.0003041,3]
[392557641,1761660649141,-500.0,0.0003041,3]
[392557642,1761660649149,-157.35020235,0.0003041,3]
[392557643,1761660649159,-500.0,0.0003041,3]
[392557644,1761660649168,-589.51,0.0003041,3]
[392557645,1761660649178,-503.39693353,0.0003041,2]
[392557646,1761660649189,-500.0,0.0003041,3]
[392557647,1761660649200,-500.0,0.0003041,3]
[392557648,1761660649209,-500.0,0.0003041,3]
[392557649,1761660649219,-500.0,0.0003041,3]
[392557650,1761660649230,-500.0,0.0003041,3]
[392557651,1761660649239,-300.0,0.0003041,2]
[392557652,1761660649251,-500.0,0.0003041,3]
[392557653,1761660649266,-500.0,0.0003041,3]
[392557654,1761660649275,-216.74056299,0.0003041,3]
[392557655,1761660649285,-651.02,0.0003041,3]
[392557656,1761660649294,-500.0,0.0003041,3]
[392557657,1761660649305,-545.01,0.0003041,3]
[392557658,1761660649315,-500.0,0.0003041,3]
[392557659,1761660649325,-1848.54,0.0003041,3]
[392557660,1761660649334,-500.0,0.0003041,2]
[392557661,1761660649344,-500.0,0.0003041,3]
[392557662,1761660649355,-500.0,0.0003041,3]
[392557663,1761660649364,-500.0,0.0003041,3]
[392557664,1761660649373,-1849.52,0.0003041,3]
[392557665,1761660649382,-500.0,0.0003041,3]
[392557666,1761660649392,-500.0,0.0003041,3]
[392557667,1761660649401,-500.0,0.0003041,3]
[392557668,1761660649410,-500.0,0.0003041,3]
[392557669,1761660649419,-500.0,0.0003041,3]
[392557670,1761660649429,-500.0,0.0003041,3]
[392557671,1761660649439,-500.0,0.0003041,3]
[392557672,1761660649448,-500.0,0.0003041,3]
[392557673,1761660649463,-500.0,0.0003041,3]
[392557674,1761660649472,-3172.04,0.0003041,3]
[392557675,1761660649481,-500.0,0.0003041,3]
[392557676,1761660649491,-500.0,0.0003041,2]
[392557677,1761660649500,-500.0,0.0003041,3]
[392557678,1761660649509,-500.0,0.0003041,3]
[392557679,1761660649519,-500.0,0.0003041,2]
[392557680,1761660649528,-500.0,0.0003041,3]
[392557681,1761660649538,-500.0,0.0003041,2]
[392557682,1761660649547,-500.0,0.0003041,3]
[392557683,1761660649556,-500.0,0.0003041,2]
[392557684,1761660649566,-500.0,0.0003041,3]
[392557685,1761660649575,-500.0,0.0003041,3]
[392557686,1761660649584,-500.0,0.0003041,3]
[392557687,1761660649593,-500.0,0.0003041,2]
[392557688,1761660649602,-500.0,0.0003041,3]
[392557689,1761660649611,-500.0,0.0003041,3]
[392557690,1761660649620,-500.0,0.0003041,3]
[392557691,1761660649629,-506.07,0.00030411,14]
[392557692,1761660649639,-6264.7745738,0.00030463,3]
[392557693,1761660649649,-160.47414675,0.00030473,5]
[392557694,1761660649658,-150.0,0.00030473,5]
[392557695,1761660649667,-3241.87204821,0.00030493,2]
[392557696,1761660649677,-183.22195988,0.00030493,2]
[392557697,1761660649686,-500.0,0.00030547,10]
[392557698,1761660649695,-500.0,0.00030547,10]
[392557699,1761660649704,-604.51791719,0.00030547,10]
[392557700,1761660649713,-150.0,0.00030547,10]
[392557701,1761660649722,-199.88,0.00030567,2]
[392557702,1761660649732,-168.0,0.00030575,2]
[392557703,1761660649741,-168.0,0.00030576,2]
[392557704,1761660649750,-8870.57286268,0.00030611,3]
[392557705,1761660649761,-6264.7745738,0.00030611,3]
[392557706,1761660649770,-5847.44656739,0.0003062,2]
[392557707,1761660649786,-4047.90343261,0.0003062,2]
[392557708,1761660649796,-300.0,0.00030622,2]
[392557709,1761660649806,-300.0,0.00030622,2]
[392557710,1761660649815,-250.0,0.00030622,2]
[392557711,1761660649824,-1220.28242064,0.00030622,120]
[392557712,1761660649833,-6264.7745738,0.00030645,3]
[392557713,1761660649843,-3241.87204821,0.00030645,2]
[392557714,1761660649853,-26611.718588,0.00030654,3]
[392557715,1761660649862,-4115.07584064,0.00030654,3]
[392557716,1761660649873,-2028.9238136,0.00030654,3]
[392557717,1761660649884,-2420.11577205,0.00030654,3]
[392557718,1761660649897,-2042.9291302,0.00030654,3]
[392557719,1761660649908,-8187.27916491,0.00030654,3]
[392557720,1761660649919,-704.12834327,0.00030663,3]
[392557721,1761660649934,-5201.97786857,0.00030663,3]
[392557722,1761660703118,155.58,0.00014837,2]
[392557723,1761660703317,155.58,0.00015662,2]
[392557724,1761660703625,155.58,0.00016486,2]
[392557725,1761660703851,155.58,0.0001731,2]
[392557726,1761660704297,155.58,0.00018134,2]
[392557727,1761660704326,155.58,0.00018959,2]
[392557728,1761660704536,155.58,0.00019783,2]
[392557729,1761660704807,155.58,0.00020607,2]
[392557730,1761660705030,155.58,0.00021432,2]
[392557731,1761660705303,155.58,0.00022256,2]
[392557732,1761660705463,155.58,0.0002308,2]
[392557733,1761660705790,155.58,0.00023905,2]
[392557734,1761660706012,155.58,0.00024729,2]
[392557735,1761660706276,155.58,0.00025553,2]
[392557736,1761660706498,155.58,0.00026377,2]
[392557738,1761660739290,500.0,0.00015,30]
[392557739,1761660739705,700.0,0.00012,2]
[392557740,1761660747821,500.0,0.00015,30]
[392557741,1761660748331,600.0,0.00012,2]
[392557750,1761661168170,-161.56645285,0.00017,2]
[392557765,1761661275245,-88.43354715,0.00017,2]
[392557767,1761661297001,201.44538414,0.00017,2]
[392557769,1761661309062,213.74,0.00013699,2]
[392557770,1761661352184,165.77442674,0.00015,30]
[392557772,1761661369685,190.73,0.00016712,2]
[392557777,1761661508179,11806.27106871,0.00015,2]
[392557778,1761661508218,2349684.38207622,0.00015,2]
[392557779,1761661563434,661.53482833,8e-05,2]
[392557780,1761661567290,368.83761485,0.00011,2]
[392557782,1761661590452,2027.1387136,0.00015,2]
[392557783,1761661609123,-213.74,0.00020187,2]
[392557784,1761661609145,-2289.23030765,0.000233,3]
[392557789,1761661629080,6855.26582398,0.00015,2]
[392557800,1761661755108,-409.23512913,0.0002,2]
[392557801,1761661755128,-489.17961144,0.000221,2]
[392557802,1761661755148,-1265.0,0.000226,3]
[392557803,1761661755168,-5515.0,0.000232,5]
[392557804,1761661755187,-684.90205178,0.00025,7]
[392557842,1761661832452,-897.40618722,0.00025,7]
[392557843,1761661832461,-170.13151278,0.00026676,2]
[392557844,1761661832475,-43.60848722,0.00026676,2]
[392557846,1761661832484,-155.58,0.00027202,2]
[392557847,1761661832493,-300.0,0.000275,2]
[392557848,1761661832503,-166.66,0.00027895,30]
[392557849,1761661832513,-165.82307771,0.000279,30]
[392557850,1761661832521,-155.58,0.00028026,2]
[392557851,1761661832530,-150.0,0.00028356,4]
[392557852,1761661832540,-172.91,0.00028687,2]
[392557853,1761661832549,-155.58,0.0002885,2]
[392557854,1761661832558,-88433.85691546,0.00029,2]
[392557855,1761661832570,-3283.16954773,0.00029,2]
[392557856,1761661832582,-1254.41808677,0.00029,2]
[392557857,1761661832779,-1934.07352637,0.00029,2]
[392557860,1761661838421,-24321.76294852,0.00029,2]
[392557861,1761661838435,-57860.00000001,0.00029,2]
[392557862,1761661838508,-2022.0,0.00029,2]
[392557901,1761661840620,-1612.00000016,0.00029,2]
[392557909,1761661840712,-148051.63517047,0.00029,2]
[392557910,1761661840800,-59426.7449301,0.00029,2]
[392557919,1761661843843,-375.2657602,0.00029,2]
[392557920,1761661844055,-278.10781198,0.00029,2]
[392557921,1761661844067,-242883.73859673,0.00029,2]
[392557922,1761661844076,-1200.0,0.00029018,2]
[392557923,1761661844084,-700.0,0.00029019,7]
[392557924,1761661844094,-500.0,0.00029019,7]
[392557925,1761661844102,-4822.0,0.00029071,2]
[392557926,1761661844111,-200.0,0.00029078,2]
[392557927,1761661844124,-160.0,0.00029094,2]
[392557928,1761661844133,-1014.84,0.00029139,120]
[392557930,1761661844142,-1000.0,0.00029271,2]
[392557932,1761661844150,-2568.66,0.00029428,2]
[392557934,1761661844160,-500.0,0.00029663,7]
[392557936,1761661844169,-500.0,0.00029663,7]
[392557937,1761661844178,-155.58,0.00029675,2]
[392557939,1761661844188,-476.03091061,0.00029732,2]
[392557940,1761661844196,-1910.335625,0.0002979,2]
[392557941,1761661844206,-200.6580227,0.00029799,2]
[392557942,1761661844214,-341.15426093,0.00029799,2]
[392557943,1761661844224,-5158.8045912,0.000298,2]
[392557945,1761661844233,-700.0,0.00029841,7]
[392557946,1761661844242,-163.24,0.0002988,2]
[392557948,1761661844251,-1030.442,0.00029881,2]
[392557949,1761661844259,-818.0,0.00029881,2]
[392557951,1761661844269,-509.669,0.00029881,2]
[392557952,1761661844278,-797.818,0.00029881,2]
[392557953,1761661844288,-215.48612756,0.00029889,2]
[392557954,1761661844504,-176.55454002,0.00029889,2]
[392557955,1761661844516,-170.62503327,0.00029889,2]
[392557956,1761661844527,-134889.99456997,0.0002989,3]
[392557957,1761661844542,-96211.77211603,0.0002989,3]
[392557958,1761661844552,-135540.08626895,0.0002989,3]
[392557962,1761661846552,-372.29773485,0.00029881,2]
[392558000,1761662245319,304.57423452,0.00015,30]
[392558016,1761662752466,721.29,0.0002,30]
[392558018,1761662820983,-5186.0985608,0.00027397,120]
[392558019,1761662821011,-1000.0,0.000298,120]
[392558020,1761662821037,-500.0,0.0002989,120]
[392558021,1761662821063,-200.0,0.0003,120]
[392558022,1761662821111,-500.0,0.00030492,120]
[392558023,1761662821136,-897.04157,0.00030492,120]
[392558024,1761662821161,-500.0,0.00030492,120]
[392558025,1761662821185,-500.0,0.00030492,120]
[392558026,1761662821219,-188.54,0.00030622,120]
[392558027,1761662821287,-160.77,0.00031487,120]
[392558028,1761662821313,-150.5,0.00031497,120]
[392558030,1761662827104,-151.0,0.00023517,2]
[392558031,1761662827124,-2.66574563,0.00025749,2]
[392558058,1761662867088,-150.0,0.00037318,120]
[392558060,1761662867145,-724.38770958,0.00037318,120]
[392558061,1761662867201,-94027.77321688,0.00037318,60]
[392558062,1761662867256,-1268198.39359211,0.00037318,60]
[392558063,1761662867313,-50000.0,0.00037318,120]
[392558064,1761662867370,-7660.68198327,0.00037318,120]
[392558065,1761662867432,-283519.71781938,0.00037318,120]
[392558066,1761662867498,-5000.0,0.00037318,120]
[392558067,1761662867564,-299.08724066,0.00037318,120]
[392558068,1761662867626,-9054.37,0.00037318,120]
[392558069,1761662867686,-9054.37,0.00037318,120]
[392558070,1761662867748,-9054.37,0.00037318,120]
[392558071,1761662867808,-9054.37,0.00037318,120]
[392558072,1761662867867,-9054.37,0.00037318,120]
[392558073,1761662867927,-9054.37,0.00037318,120]
[392558074,1761662867989,-9054.37,0.00037318,120]
[392558075,1761662868047,-9054.37,0.00037318,120]
[392558076,1761662868103,-9054.37,0.00037318,120]
[392558077,1761662868157,-9054.37,0.00037318,120]
[392558078,1761662868210,-9054.37,0.00037318,120]
[392558079,1761662868263,-9054.37,0.00037318,120]
[392558080,1761662868319,-9054.37,0.00037318,120]
[392558081,1761662868375,-9054.37,0.00037318,120]
[392558082,1761662868428,-9054.37,0.00037318,120]
[392558083,1761662868484,-9054.37,0.00037318,120]
[392558084,1761662868543,-9054.37,0.00037318,120]
[392558085,1761662868598,-9054.37,0.00037318,120]
[392558086,1761662868653,-9054.37,0.00037318,120]
[392558087,1761662868708,-9054.37,0.00037318,120]
[392558088,1761662868762,-9054.37,0.00037318,120]
[392558089,1761662868814,-9054.37,0.00037318,120]
[392558090,1761662868866,-9054.37,0.00037318,120]
[392558091,1761662868916,-9054.38517229,0.00037318,120]
[392558092,1761662868964,-452.48629018,0.00037318,120]
[392558093,1761662869192,1000.0,0.00037318,120]
[392558094,1761662869256,1000.0,0.00037318,120]
[392558095,1761662869333,1000.0,0.00037318,120]
[392558096,1761662869402,1000.0,0.00037318,120]
[392558097,1761662869459,1000.0,0.00037318,120]
[392558098,1761662869522,1000.0,0.00037318,120]
[392558099,1761662869592,1000.0,0.00037318,120]
[392558100,1761662869656,1000.0,0.00037318,120]
[392558101,1761662869721,1000.0,0.00037318,120]
[392558102,1761662869796,1000.0,0.00037318,120]
[392558103,1761662869876,865.0099265,0.00037318,120]
[392558105,1761662922135,1000.0,0.000297,120]
[392558126,1761662948088,-268.78009057,0.00025749,2]
[392558127,1761662948108,-194.04,0.00026212,2]
[392558128,1761662960287,-150.0,0.00026975,2]
[392558129,1761662960309,-150.0,0.00026975,2]